bitfinex/quotes_BTCUSD_20230117
["timestamp","ask_amount","ask_price","bid_price","bid_amount"]
[1673970472055,0.322079,21145.0,21141.0,0.473003]
[1673970472325,0.322079,21145.0,21142.0,0.007]
[1673970472326,0.322079,21144.0,21142.0,0.007]
[1673970472605,0.322079,21143.0,21140.0,0.79923004]
[1673970472890,0.51280495,21142.0,21136.0,0.946243]
[1673970473122,0.19072595,21141.0,21136.0,0.946243]
[1673970473394,0.51280495,21140.0,21136.0,0.473119]
[1673970473660,0.51280495,21140.0,21139.0,0.39314246]
[1673970473661,0.19072595,21140.0,21139.0,0.39314246]
[1673970473920,0.8758,21143.0,21141.0,0.16242377]
[1673970474176,0.8758,21143.0,21141.0,0.25356788]
[1673970474460,0.322079,21142.0,21139.0,0.946099]
[1673970474717,0.322079,21141.0,21140.0,0.007]
[1673970474977,0.322079,21141.0,21136.0,0.946218]
[1673970475246,0.89172438,21142.0,21136.0,0.946218]
[1673970475247,0.51280495,21140.0,21136.0,0.946218]
[1673970475514,0.15,21138.0,21134.0,6e-05]
[1673970475779,0.98591295,21137.0,21134.0,6e-05]
[1673970476053,0.98591295,21137.0,21131.0,0.01537022]
[1673970476054,0.473108,21137.0,21136.0,6e-05]
[1673970476328,1.682787,21137.0,21136.0,0.00606]
[1673970477362,1.209679,21137.0,21136.0,0.09720411]
[1673970477612,0.322079,21137.0,21136.0,6e-05]
[1673970478166,0.76607777,21137.0,21136.0,6e-05]
[1673970478442,0.85207777,21137.0,21136.0,0.00106]
[1673970478696,1.32518177,21137.0,21136.0,6e-05]
[1673970478995,1.32418177,21137.0,21136.0,0.00106]
[1673970479260,1.23918177,21137.0,21136.0,0.00106]
[1673970479532,1.32518177,21137.0,21136.0,6e-05]
[1673970480582,1.41118177,21137.0,21136.0,0.00106]
[1673970480840,1.41118177,21137.0,21136.0,0.07491]
[1673970480841,0.322079,21137.0,21136.0,0.07491]
[1673970481094,0.086,21137.0,21136.0,0.001]
[1673970481361,0.086,21137.0,21136.0,1.04870192]
[1673970481626,1.40947,21143.0,21136.0,1.90294527]
[1673970481889,0.085,21137.0,21136.0,0.95755781]
[1673970482169,0.42640014,21142.0,21136.0,1.25655781]
[1673970482423,0.009,21137.0,21136.0,1.72545481]
[1673970482693,0.945991,21142.0,21136.0,1.25655781]
[1673970482954,1.12722595,21143.0,21137.0,0.85504111]
[1673970482955,0.9365,21143.0,21137.0,0.85504111]
[1673970483223,0.9365,21143.0,21138.0,1.02811511]
[1673970483491,0.61959786,21147.0,21139.0,0.39114411]
[1673970483765,0.9365,21146.0,21140.0,0.473029]
[1673970484089,0.009,21143.0,21141.0,0.85504111]
[1673970484351,0.47943201,21147.0,21141.0,0.773013]
[1673970484599,0.47943201,21147.0,21142.0,1.65119864]
[1673970484600,0.01553001,21147.0,21142.0,1.65119864]
[1673970485062,0.19725596,21147.0,21142.0,0.4401377]
[1673970485067,0.009,21146.0,21142.0,0.9131187]
[1673970485325,0.00653001,21147.0,21143.0,0.3]
[1673970485577,0.01553001,21147.0,21143.0,0.58947672]
[1673970485842,0.00653001,21147.0,21143.0,1.33729371]
[1673970486098,0.00653001,21147.0,21144.0,0.09114411]
[1673970486368,0.00653001,21147.0,21145.0,1.18699411]
[1673970486637,0.00653001,21147.0,21146.0,0.49903534]
[1673970486895,0.01553001,21147.0,21146.0,1.59502377]
[1673970487152,0.00653001,21147.0,21146.0,2.54512746]
[1673970487446,0.00953001,21147.0,21146.0,2.54512746]
[1673970487723,0.00953001,21147.0,21146.0,0.97023601]
[1673970487983,0.00153001,21147.0,21146.0,0.9702366]
[1673970488254,0.00153001,21147.0,21146.0,1.12002478]
[1673970488532,0.00953001,21147.0,21146.0,2.54646545]
[1673970488795,0.00153001,21147.0,21146.0,1.59449747]
[1673970489045,0.00153001,21147.0,21146.0,2.54643908]
[1673970489046,0.00953001,21147.0,21146.0,2.54643908]
[1673970489840,0.00953001,21147.0,21146.0,2.86739975]
[1673970489841,0.0023142,21147.0,21146.0,2.86739975]
[1673970490353,0.19072595,21147.0,21146.0,0.79386267]
[1673970490742,0.008,21147.0,21146.0,0.33196067]
[1673970491020,0.008,21147.0,21146.0,0.011]
[1673970491021,0.59589495,21147.0,21146.0,0.011]
[1673970491269,0.405169,21147.0,21146.0,0.011]
[1673970491551,1.29615937,21147.0,21146.0,0.011]
[1673970491804,0.322079,21146.0,21140.0,0.43436179]
[1673970492080,0.51280495,21145.0,21142.0,0.1288232]
[1673970492332,0.322079,21144.0,21142.0,0.1288232]
[1673970492583,0.322079,21143.0,21142.0,0.1288232]
[1673970492835,0.322079,21143.0,21138.0,0.13834133]
[1673970492836,0.19072595,21143.0,21138.0,0.13834133]
[1673970493087,0.639728,21146.0,21139.0,0.94621263]
[1673970493088,0.51280495,21142.0,21139.0,0.94621263]
[1673970493345,0.38954713,21144.0,21136.0,0.51916201]
[1673970493346,0.51280495,21141.0,21136.0,0.51916201]
[1673970493602,0.51280495,21140.0,21137.0,0.94628182]
[1673970493864,0.19072595,21140.0,21137.0,0.94628182]
[1673970494122,1.59561,21143.0,21137.0,0.94628182]
[1673970494123,0.008,21142.0,21139.0,0.01]
[1673970494389,0.9567,21143.0,21139.0,0.09114411]
[1673970494649,0.008,21140.0,21139.0,0.09114411]
[1673970494897,0.322079,21141.0,21138.0,0.15464965]
[1673970495175,0.322081,21140.0,21139.0,0.017]
[1673970495419,0.322081,21140.0,21135.0,0.473143]
[1673970495677,0.322081,21139.0,21138.0,0.19637668]
[1673970495935,0.87209035,21143.0,21138.0,0.19637668]
[1673970496204,0.39910835,21143.0,21139.0,0.09114411]
[1673970496469,0.322081,21142.0,21139.0,0.10814411]
[1673970496725,0.40610835,21143.0,21138.0,0.19637668]
[1673970496726,0.322081,21141.0,21138.0,0.19637668]
[1673970496988,1.429663,21144.0,21138.0,0.19637668]
[1673970496989,0.8849,21147.0,21139.0,0.56419611]
[1673970497251,0.8849,21147.0,21141.0,0.15]
[1673970497498,0.007,21143.0,21142.0,1.50482832]
[1673970497830,0.007,21143.0,21142.0,1.72317769]
[1673970498284,0.00695938,21149.0,21143.0,0.15]
[1673970498540,0.00695938,21149.0,21144.0,1.50050063]
[1673970498541,0.007,21147.0,21144.0,1.50050063]
[1673970498798,0.00695938,21149.0,21145.0,0.3]
[1673970499083,0.00695938,21149.0,21146.0,0.472898]
[1673970499330,0.00695938,21149.0,21146.0,0.56404211]
[1673970499872,0.00695938,21149.0,21148.0,0.945714]
[1673970500116,0.01395938,21149.0,21148.0,1.245714]
[1673970500412,0.00695938,21149.0,21148.0,0.472857]
[1673970500617,0.01495938,21149.0,21146.0,0.017]
[1673970500874,0.7302707,21148.0,21144.0,0.2063436]
[1673970501138,0.51280695,21147.0,21144.0,0.2063436]
[1673970501397,0.322081,21146.0,21144.0,0.2063436]
[1673970501657,0.07095938,21149.0,21144.0,0.2063436]
[1673970501919,0.07095938,21149.0,21144.0,0.29748771]
[1673970501920,0.472858,21148.0,21144.0,0.29748771]
[1673970502175,0.472858,21148.0,21142.0,0.472989]
[1673970502176,0.322081,21147.0,21142.0,0.472989]
[1673970502463,0.51280695,21146.0,21144.0,0.017]
[1673970502693,0.322081,21145.0,21144.0,0.017]
[1673970503463,0.322081,21144.0,21141.0,0.473011]
[1673970503721,0.19072595,21144.0,21141.0,0.473011]
[1673970504235,0.007,21145.0,21141.0,0.473011]
[1673970504482,0.007,21144.0,21141.0,0.58115511]
[1673970504739,0.007,21144.0,21141.0,0.490011]
[1673970504992,0.19072595,21143.0,21141.0,0.017]
[1673970505252,0.19072595,21143.0,21140.0,0.81882814]
[1673970505253,0.19072595,21144.0,21140.0,0.34580914]
[1673970505526,0.322081,21143.0,21140.0,0.34580914]
[1673970505814,0.322081,21142.0,21139.0,0.946099]
[1673970506080,0.322081,21141.0,21139.0,0.47304]
[1673970506337,0.19072595,21142.0,21139.0,0.47304]
[1673970506599,0.85188764,21144.0,21139.0,0.47304]
[1673970506867,0.007,21142.0,21139.0,0.57918411]
[1673970507104,0.007,21142.0,21139.0,0.961099]
[1673970507353,0.56966459,21144.0,21139.0,0.946099]
[1673970507633,0.007,21141.0,21139.0,1.05224311]
[1673970507861,0.56966459,21144.0,21139.0,0.946099]
[1673970508124,0.007,21142.0,21140.0,0.3]
[1673970508370,0.007,21142.0,21139.0,0.961099]
[1673970508637,0.322081,21141.0,21139.0,0.015]
[1673970508911,0.322081,21140.0,21139.0,0.015]
[1673970509155,0.322081,21140.0,21136.0,0.62070068]
[1673970509421,0.322081,21139.0,21138.0,0.8893929]
[1673970509666,0.19072595,21142.0,21138.0,0.8893929]
[1673970509927,0.007,21140.0,21139.0,0.08985]
[1673970510188,0.472954,21144.0,21140.0,0.31643847]
[1673970510448,0.007,21139.0,21138.0,0.015]
[1673970510701,0.007,21139.0,21134.0,1.04998992]
[1673970510702,1.54101495,21139.0,21134.0,1.03672159]
[1673970510960,0.51280695,21138.0,21135.0,0.473141]
[1673970511215,0.19072595,21138.0,21135.0,0.473141]
[1673970511724,0.007,21139.0,21135.0,0.473141]
[1673970511976,0.007,21139.0,21135.0,0.946289]
[1673970512505,0.007,21139.0,21137.0,0.473104]
[1673970512781,0.007,21139.0,21137.0,1.03735211]
[1673970512782,0.014,21139.0,21137.0,1.03735211]
[1673970513015,0.4563948,21141.0,21137.0,0.946208]
[1673970513299,0.007,21139.0,21137.0,1.03735211]
[1673970513529,0.4563948,21141.0,21137.0,0.946208]
[1673970513800,0.007,21139.0,21138.0,0.09114411]
[1673970514060,1.88053,21146.0,21140.0,0.946068]
[1673970514317,0.007,21141.0,21140.0,0.946068]
[1673970514593,0.007,21141.0,21140.0,1.246068]
[1673970514832,0.007,21141.0,21140.0,1.396068]
[1673970515350,0.007,21141.0,21140.0,1.246068]
[1673970515961,0.002,21141.0,21140.0,0.946068]
[1673970516158,2.28658354,21146.0,21140.0,1.246068]
[1673970516414,2.28658354,21146.0,21141.0,0.09114411]
[1673970516415,2.29358354,21146.0,21141.0,0.09114411]
[1673970516667,2.29358354,21146.0,21140.0,1.42850257]
[1673970516668,2.28658354,21146.0,21142.0,0.09114411]
[1673970517193,0.322081,21144.0,21142.0,0.09114411]
[1673970517441,0.322081,21143.0,21140.0,0.966128]
[1673970517690,0.48620764,21145.0,21140.0,0.966128]
[1673970517691,0.01327764,21145.0,21141.0,0.3]
[1673970517939,0.01327764,21145.0,21142.0,0.492986]
[1673970518489,0.01327764,21145.0,21142.0,0.58413011]
[1673970518704,0.01327764,21145.0,21144.0,1.095894]
[1673970518960,0.01327764,21145.0,21144.0,1.5820131]
[1673970519199,0.01327764,21145.0,21144.0,1.1320131]
[1673970519459,0.01327764,21145.0,21144.0,1.4320131]
[1673970519716,0.02027764,21145.0,21144.0,2.46356854]
[1673970519970,0.01327764,21145.0,21144.0,3.80181136]
[1673970520239,0.004,21145.0,21144.0,2.85705464]
[1673970520504,0.004,21145.0,21144.0,4.51650259]
[1673970521026,0.00695938,21148.0,21145.0,0.15]
[1673970521299,0.00695938,21148.0,21146.0,2.20062408]
[1673970521822,0.00695938,21148.0,21146.0,1.73712556]
[1673970522078,0.00695938,21148.0,21147.0,0.3]
[1673970522347,0.00695938,21148.0,21147.0,1.24576]
[1673970522583,0.00695938,21148.0,21147.0,0.94576]
[1673970522865,0.00695938,21148.0,21147.0,1.24576]
[1673970523386,0.00695938,21148.0,21147.0,1.33076]
[1673970523387,0.00795938,21148.0,21147.0,1.33076]
[1673970523888,0.00795938,21148.0,21147.0,1.03076]
[1673970524920,0.00795938,21148.0,21147.0,1.18082]
[1673970525183,0.00795938,21148.0,21147.0,3.45940457]
[1673970525433,0.00795938,21148.0,21147.0,3.25093743]
[1673970525691,0.00795938,21148.0,21147.0,1.528559]
[1673970525903,0.00695938,21148.0,21147.0,1.593559]
[1673970526206,0.00695938,21148.0,21147.0,1.222559]
[1673970526461,0.00795938,21148.0,21147.0,0.47294]
[1673970526716,0.00895938,21148.0,21147.0,0.25765548]
[1673970526964,0.00695938,21148.0,21147.0,0.80153548]
[1673970527224,0.00695938,21148.0,21147.0,0.88053548]
[1673970527486,0.00795938,21148.0,21147.0,2.98037424]
[1673970527734,0.00105936,21148.0,21147.0,3.95283499]
[1673970528010,0.00105936,21148.0,21147.0,1.07827248]
[1673970528275,0.00105936,21148.0,21147.0,0.73053548]
[1673970528762,0.00105936,21148.0,21147.0,0.65153548]
[1673970528763,5.936e-05,21148.0,21147.0,0.65153548]
[1673970529042,0.00105936,21148.0,21147.0,0.25765548]
[1673970529315,1.37125371,21148.0,21146.0,6e-05]
[1673970529577,0.70867076,21148.0,21147.0,0.079]
[1673970529837,0.322081,21147.0,21146.0,6e-05]
[1673970530602,0.794961,21147.0,21146.0,0.07906]
[1673970531112,1.267841,21147.0,21146.0,0.07906]
[1673970531633,1.267841,21147.0,21146.0,6e-05]
[1673970531891,1.268841,21147.0,21146.0,0.07906]
[1673970532142,1.268841,21147.0,21146.0,6e-05]
[1673970532143,1.267841,21147.0,21146.0,6e-05]
[1673970532399,0.795961,21147.0,21146.0,0.08006]
[1673970532619,0.794961,21147.0,21146.0,6e-05]
[1673970533719,0.322081,21147.0,21146.0,0.07491]
[1673970534487,0.322081,21147.0,21146.0,0.867846]
[1673970534488,0.001,21147.0,21146.0,0.867846]
[1673970534742,5.936e-05,21148.0,21146.0,1.116846]
[1673970534999,5.936e-05,21148.0,21147.0,1.09576]
[1673970535245,5.936e-05,21148.0,21147.0,1.39576]
[1673970535507,5.936e-05,21148.0,21147.0,2.05762072]
[1673970535765,0.00695938,21149.0,21148.0,1.09571464]
[1673970536028,0.00695938,21149.0,21148.0,2.05756336]
[1673970536845,0.00695938,21149.0,21148.0,2.35929248]
[1673970537104,0.00695938,21149.0,21148.0,2.16156548]
[1673970537376,0.00695938,21149.0,21148.0,2.35929048]
[1673970537932,0.00795938,21149.0,21148.0,2.57935129]
[1673970538176,0.00795938,21149.0,21148.0,4.14999645]
[1673970538442,0.00679007,21150.0,21149.0,1.43483485]
[1673970538747,8.014e-05,21151.0,21149.0,3.65445599]
[1673970538974,0.00669007,21154.0,21151.0,1.418358]
[1673970539311,0.00669007,21154.0,21153.0,0.1479]
[1673970539484,0.00690235,21156.0,21153.0,1.18036752]
[1673970539738,0.00690235,21156.0,21155.0,0.1476]
[1673970539991,0.00690235,21156.0,21155.0,0.945402]
[1673970540248,0.00690235,21156.0,21155.0,1.443041]
[1673970540523,0.00559442,21161.0,21155.0,1.143041]
[1673970540770,0.00559442,21161.0,21156.0,0.85526583]
[1673970541029,0.00559442,21161.0,21157.0,1.03644511]
[1673970541296,0.38886718,21160.0,21155.0,0.93682272]
[1673970541549,0.38886718,21160.0,21154.0,0.47271]
[1673970541550,0.322081,21159.0,21154.0,0.47271]
[1673970541800,0.51280695,21158.0,21155.0,0.4727]
[1673970542059,0.00746702,21158.0,21155.0,0.4727]
[1673970542320,0.00746702,21158.0,21155.0,0.61168988]
[1673970542571,0.322081,21157.0,21155.0,0.61168988]
[1673970542825,0.00746702,21158.0,21155.0,0.61168988]
[1673970542826,0.00746702,21158.0,21155.0,0.13898988]
[1673970543137,0.322081,21157.0,21153.0,0.472725]
[1673970543339,0.51280695,21156.0,21155.0,0.092]
[1673970543594,0.322081,21156.0,21155.0,0.092]
[1673970544094,0.322081,21156.0,21152.0,0.11698397]
[1673970544353,0.19072595,21156.0,21155.0,0.092]
[1673970544618,0.322081,21156.0,21152.0,0.11698397]
[1673970544872,0.19072595,21156.0,21155.0,0.00706]
[1673970545127,1.23281094,21156.0,21155.0,6e-05]
[1673970545392,1.64202884,21156.0,21155.0,0.00806]
[1673970545672,1.83931094,21156.0,21155.0,6e-05]
[1673970545905,1.53931094,21156.0,21155.0,6e-05]
[1673970546163,0.15,21155.0,21150.0,0.00604318]
[1673970546452,1.60627695,21154.0,21150.0,0.00604318]
[1673970546692,0.15,21152.0,21150.0,0.00604318]
[1673970546934,1.267617,21152.0,21150.0,0.00604318]
[1673970547187,0.322081,21151.0,21150.0,0.00604318]
[1673970547437,0.82168409,21151.0,21150.0,0.08089318]
[1673970547689,0.82168409,21151.0,21150.0,0.01204318]
[1673970547937,0.82168409,21151.0,21150.0,0.00604318]
[1673970548194,0.82168409,21151.0,21150.0,0.01204318]
[1673970548719,1.70898409,21151.0,21150.0,0.00604318]
[1673970548977,1.70898409,21151.0,21150.0,0.08689318]
[1673970548978,1.73098409,21151.0,21150.0,0.08689318]
[1673970549230,0.322081,21151.0,21150.0,0.08089318]
[1673970549741,1.38856408,21155.0,21151.0,0.32155786]
[1673970550018,0.8873,21155.0,21152.0,0.09114411]
[1673970550533,0.322081,21154.0,21152.0,0.39114411]
[1673970550798,1.79850252,21157.0,21153.0,0.15]
[1673970551041,0.002,21155.0,21153.0,0.24114411]
[1673970551294,1.79850252,21157.0,21153.0,0.15]
[1673970551549,0.002,21154.0,21153.0,0.24114411]
[1673970551808,1.32583052,21157.0,21151.0,0.91952786]
[1673970551809,1.51300052,21157.0,21151.0,0.32155786]
[1673970552067,0.002,21155.0,21153.0,0.072]
[1673970552612,0.322081,21154.0,21153.0,0.072]
[1673970552866,0.920004,21154.0,21153.0,0.072]
[1673970553118,0.920004,21154.0,21150.0,0.00604318]
[1673970553388,0.920004,21154.0,21153.0,0.066]
[1673970553389,0.66544895,21154.0,21153.0,0.066]
[1673970553616,0.794804,21154.0,21150.0,0.00604318]
[1673970553877,0.794804,21154.0,21153.0,0.006]
[1673970553878,1.16217195,21154.0,21153.0,0.006]
[1673970554145,1.16217195,21154.0,21150.0,0.00604318]
[1673970554146,0.322081,21153.0,21150.0,0.00604318]
[1673970554401,0.322081,21152.0,21150.0,0.01204318]
[1673970554735,0.971446,21154.0,21150.0,0.01204318]
[1673970554736,0.322081,21151.0,21150.0,0.00604318]
[1673970555428,0.955466,21154.0,21150.0,0.00604318]
[1673970555710,0.955466,21154.0,21151.0,0.09114411]
[1673970555711,0.322081,21153.0,21151.0,0.09114411]
[1673970555999,0.98671198,21155.0,21150.0,0.15118134]
[1673970556221,0.002,21153.0,21151.0,0.09114411]
[1673970556469,0.51400598,21155.0,21150.0,1.1613178]
[1673970556739,0.01,21153.0,21151.0,0.15]
[1673970557004,1.359975,21157.0,21151.0,0.922784]
[1673970557288,0.002,21153.0,21152.0,0.53731894]
[1673970557528,0.002,21153.0,21152.0,1.41747162]
[1673970557782,0.002,21153.0,21152.0,2.362176]
[1673970558067,0.002,21153.0,21152.0,4.07147966]
[1673970558295,0.00746702,21158.0,21152.0,5.50652704]
[1673970558542,0.00746702,21158.0,21154.0,0.14123477]
[1673970558815,0.00746702,21158.0,21157.0,0.472656]
[1673970559074,0.00746702,21158.0,21156.0,0.92014208]
[1673970559333,0.00746702,21158.0,21156.0,0.472663]
[1673970559589,0.002,21157.0,21156.0,0.472663]
[1673970559872,0.00746702,21158.0,21157.0,0.3]
[1673970560114,0.00946702,21158.0,21157.0,0.840656]
[1673970560368,0.00746702,21158.0,21156.0,0.74783176]
[1673970560879,0.00746702,21158.0,21156.0,0.59783176]
[1673970561154,0.00746702,21158.0,21154.0,0.472722]
[1673970561155,0.33154802,21158.0,21154.0,0.472722]
[1673970561392,0.51280695,21157.0,21154.0,0.472722]
[1673970561644,0.322081,21156.0,21154.0,0.472722]
[1673970561936,0.42972922,21158.0,21154.0,0.62318815]
[1673970562170,0.42972922,21158.0,21154.0,0.71433226]
[1673970562530,0.42972922,21158.0,21155.0,0.15]
[1673970562948,0.322081,21157.0,21154.0,0.15046615]
[1673970563212,0.322081,21157.0,21151.0,0.82586292]
[1673970563213,0.322081,21156.0,21151.0,0.82586292]
[1673970563456,0.322081,21156.0,21150.0,0.00604318]
[1673970563457,1.11071895,21155.0,21150.0,0.00604318]
[1673970563712,0.51280695,21154.0,21150.0,0.00604318]
[1673970563967,0.51280695,21153.0,21150.0,0.00604318]
[1673970564234,0.322081,21152.0,21150.0,0.00604318]
[1673970564486,0.945477,21154.0,21150.0,0.00604318]
[1673970564487,0.945477,21154.0,21150.0,0.40346183]
[1673970565037,0.472692,21156.0,21152.0,0.29852959]
[1673970565266,0.472692,21156.0,21152.0,0.3896737]
[1673970565267,0.472701,21156.0,21152.0,0.3896737]
[1673970565547,0.322081,21154.0,21152.0,0.3896737]
[1673970565816,0.322081,21153.0,21152.0,0.29852959]
[1673970566338,0.472717,21155.0,21152.0,0.29852959]
[1673970566574,0.472717,21155.0,21152.0,0.36652959]
[1673970566825,0.322081,21154.0,21152.0,0.29852959]
[1673970567082,0.324081,21153.0,21152.0,0.36652959]
[1673970567334,0.472717,21155.0,21152.0,0.29852959]
[1673970567843,0.472717,21155.0,21150.0,0.62006995]
[1673970567844,0.322081,21154.0,21150.0,0.62006995]
[1673970568099,0.322081,21153.0,21150.0,0.47883518]
[1673970568350,0.322081,21153.0,21152.0,0.068]
[1673970568351,0.51280695,21153.0,21152.0,0.068]
[1673970568603,0.794827,21153.0,21152.0,0.068]
[1673970568854,0.794827,21153.0,21150.0,0.00604318]
[1673970568855,0.322081,21153.0,21150.0,0.00604318]
[1673970569111,0.99210117,21154.0,21150.0,0.47885218]
[1673970569360,0.99210117,21154.0,21150.0,0.56999629]
[1673970569623,0.002,21153.0,21150.0,0.54685218]
[1673970569875,0.002,21153.0,21150.0,1.01966518]
[1673970570212,0.002,21153.0,21150.0,1.20770035]
[1673970570656,0.002,21153.0,21150.0,1.49893512]
[1673970570913,0.002,21153.0,21150.0,1.20770035]
[1673970571163,0.472714,21155.0,21150.0,1.13970035]
[1673970571428,0.002,21154.0,21151.0,1.77224938]
[1673970571674,0.48011302,21158.0,21153.0,1.55943477]
[1673970571922,0.00746702,21158.0,21154.0,0.58880011]
[1673970572172,0.00746702,21158.0,21155.0,0.56384311]
[1673970572429,0.00746702,21158.0,21156.0,0.24114411]
[1673970572686,0.00746702,21158.0,21157.0,0.472656]
[1673970572957,0.00946702,21158.0,21157.0,0.472656]
[1673970573202,0.00746702,21158.0,21157.0,0.472656]
[1673970573491,0.00746702,21158.0,21157.0,1.395312]
[1673970573726,0.00746702,21158.0,21153.0,0.14123477]
[1673970573727,1.14346097,21158.0,21153.0,0.14123477]
[1673970573990,1.14346097,21158.0,21152.0,0.73987792]
[1673970573991,0.51280695,21157.0,21152.0,0.73987792]
[1673970574240,0.98549595,21156.0,21152.0,0.52802577]
[1673970574490,0.51280695,21155.0,21152.0,0.73987792]
[1673970574742,0.51280695,21155.0,21152.0,0.52802577]
[1673970574743,0.322081,21154.0,21152.0,0.52802577]
[1673970574995,0.472674,21157.0,21153.0,0.068]
[1673970575263,0.322081,21153.0,21150.0,0.00604318]
[1673970575522,0.93684072,21155.0,21152.0,0.068]
[1673970575784,1.70618725,21153.0,21150.0,0.00604318]
[1673970576031,0.322081,21152.0,21150.0,0.00604318]
[1673970576291,0.794871,21151.0,21150.0,0.00604318]
[1673970576583,0.322081,21151.0,21150.0,0.08089318]
[1673970576822,0.91135225,21153.0,21150.0,1.16786866]
[1673970577075,0.91135225,21153.0,21150.0,0.22212795]
[1673970577354,0.91135225,21153.0,21152.0,0.068]
[1673970577585,1.23343325,21153.0,21152.0,0.068]
[1673970578110,0.322081,21152.0,21150.0,0.00604318]
[1673970578362,0.324081,21151.0,21150.0,0.07404318]
[1673970578619,0.002,21151.0,21150.0,0.21527795]
[1673970578869,0.002,21151.0,21150.0,1.16102634]
[1673970579127,0.43860625,21153.0,21150.0,0.00604318]
[1673970579375,0.43860625,21153.0,21150.0,1.59876344]
[1673970579638,0.43860625,21153.0,21150.0,0.3591301]
[1673970579639,0.36943942,21153.0,21150.0,0.3591301]
[1673970580144,0.37143942,21153.0,21152.0,0.068]
[1673970580398,0.36943942,21153.0,21150.0,0.3591301]
[1673970580649,0.37143942,21153.0,21150.0,0.4271301]
[1673970580918,0.37143942,21153.0,21150.0,0.8999411]
[1673970581220,0.36943942,21153.0,21150.0,0.8319411]
[1673970581753,0.56216537,21153.0,21152.0,0.068]
[1673970581961,0.19072595,21152.0,21150.0,0.00604318]
[1673970582220,0.51280695,21152.0,21150.0,0.00604318]
[1673970582486,0.794871,21151.0,21150.0,0.00604318]
[1673970582734,1.267661,21151.0,21150.0,0.00604318]
[1673970583002,1.267661,21151.0,21150.0,0.07404318]
[1673970583260,1.267661,21151.0,21150.0,0.00604318]
[1673970583514,1.80031247,21151.0,21150.0,0.07404318]
[1673970583757,1.80031247,21151.0,21150.0,0.00604318]
[1673970584010,1.80231247,21151.0,21150.0,0.07404318]
[1673970584783,1.80031247,21151.0,21150.0,0.00604318]
[1673970585059,1.80031247,21151.0,21150.0,0.06804318]
[1673970585060,0.85673247,21151.0,21150.0,0.06804318]
[1673970585303,0.53465147,21151.0,21150.0,0.06804318]
[1673970585633,0.002,21151.0,21150.0,0.06804318]
[1673970586073,1.82644894,21153.0,21150.0,0.00604318]
[1673970586353,0.472772,21152.0,21150.0,0.08504318]
[1673970586619,0.322081,21151.0,21150.0,0.00604318]
[1673970586876,1.268661,21151.0,21150.0,0.08504318]
[1673970587126,1.77084751,21151.0,21150.0,0.00604318]
[1673970587630,1.77084751,21151.0,21150.0,0.08089318]
[1673970587895,0.472787,21152.0,21150.0,0.08089318]
[1673970587896,0.001,21152.0,21150.0,0.15989318]
[1673970588218,0.9007,21157.0,21150.0,1.76043405]
[1673970588425,0.00746702,21158.0,21153.0,0.197671]
[1673970588689,0.53777969,21158.0,21154.0,0.09114411]
[1673970588965,1.48305569,21158.0,21155.0,0.09114411]
[1673970589486,0.322081,21157.0,21155.0,0.09114411]
[1673970589741,0.322081,21156.0,21153.0,0.604728]
[1673970590010,0.322081,21156.0,21152.0,0.0007744]
[1673970590011,0.7644657,21156.0,21152.0,0.0007744]
[1673970590291,0.794804,21154.0,21152.0,0.0007744]
[1673970590540,0.51280695,21153.0,21152.0,0.0007744]
[1673970591063,1.79925055,21153.0,21152.0,0.0007744]
[1673970591863,1.79821385,21153.0,21152.0,0.0007744]
[1673970592127,1.79821385,21153.0,21147.0,0.14144557]
[1673970592374,0.51280695,21152.0,21147.0,0.14144557]
[1673970592630,1.45838595,21151.0,21146.0,0.36780641]
[1673970592952,1.13632695,21151.0,21147.0,1.08730574]
[1673970593168,1.13632695,21151.0,21147.0,0.14144557]
[1673970593460,1.13632695,21151.0,21147.0,0.45061393]
[1673970593632,0.472799,21151.0,21148.0,0.14144557]
[1673970593878,0.472799,21151.0,21147.0,0.14144557]
[1673970594393,0.472799,21151.0,21148.0,0.14144557]
[1673970594648,0.472746,21153.0,21149.0,0.14144557]
[1673970594902,0.99653267,21156.0,21151.0,0.945566]
[1673970595161,0.99653267,21156.0,21152.0,0.09114411]
[1673970595448,0.52383767,21156.0,21153.0,0.09114411]
[1673970595714,1.41462002,21158.0,21154.0,0.09114411]
[1673970596015,0.00746702,21158.0,21155.0,0.09114411]
[1673970596277,0.00746702,21158.0,21156.0,0.09114411]
[1673970596820,0.00746702,21158.0,21155.0,0.93518484]
[1673970596821,0.00746702,21158.0,21155.0,0.472688]
[1673970597575,0.00746702,21158.0,21156.0,0.097]
[1673970598352,0.00746702,21158.0,21154.0,1.35794599]
[1673970598611,0.19819297,21158.0,21155.0,0.097]
[1673970598872,0.00746702,21158.0,21154.0,0.89546615]
[1673970599116,0.19819297,21158.0,21154.0,0.89546615]
[1673970599612,0.19819297,21158.0,21156.0,0.097]
[1673970599890,0.322059,21157.0,21153.0,0.14144557]
[1673970600147,0.51278495,21156.0,21154.0,0.096]
[1673970600403,0.322059,21156.0,21152.0,0.82636893]
[1673970600696,0.19072595,21156.0,21152.0,0.61420057]
[1673970601489,0.19072595,21156.0,21152.0,1.50216166]
[1673970601745,0.19072595,21156.0,21152.0,0.61421357]
[1673970602013,0.19057555,21156.0,21152.0,0.14144557]
[1673970602524,1.13593655,21156.0,21152.0,0.14144557]
[1673970602783,0.945361,21156.0,21151.0,1.26583568]
[1673970603043,0.945361,21156.0,21154.0,0.096]
[1673970603044,1.59255748,21156.0,21154.0,0.096]
[1673970603307,0.322059,21155.0,21151.0,0.53072927]
[1673970603582,0.322059,21154.0,21152.0,0.097]
[1673970603854,1.267551,21153.0,21152.0,0.097]
[1673970604157,1.267551,21153.0,21149.0,0.14144557]
[1673970604430,0.51278495,21152.0,21148.0,0.50361393]
[1673970604698,0.322059,21151.0,21148.0,0.35361393]
[1673970604975,0.472746,21153.0,21149.0,1.08721411]
[1673970605254,0.472746,21153.0,21149.0,0.23274009]
[1673970605505,0.472746,21153.0,21148.0,0.33989053]
[1673970605506,1.04127461,21152.0,21148.0,0.33989053]
[1673970605770,0.322059,21151.0,21148.0,0.33989053]
[1673970606086,1.66477361,21152.0,21148.0,0.55205889]
[1673970606346,1.19200461,21152.0,21148.0,0.55205889]
[1673970606858,1.68780052,21152.0,21148.0,0.097]
[1673970606859,1.87852647,21152.0,21148.0,0.097]